[Event "Titled Tuesday Blitz March 15 Early 2022"]
[White "Andreikin, Dmitry"]
[Black "Beerdsen, Thomas"]
[WhiteFideId "4158814"]
[BlackFideId "1030108"]
[WhiteElo "2736"]
[BlackElo "2585"]
[Result "1-0"]
[Round "08"]
[TimeControl "180+1"]
[Date "2022.03.15"]
[WhiteClock "0:00:37"]
[BlackClock "0:00:12"]

1. e4 {[%clk 0:02:25]}  e5 {[%clk 0:02:59]} 2. Nf3 {[%clk 0:02:25]}  Nc6 {[%clk 0:02:59]} 3. Nc3 {[%clk 0:02:25]}  f5 {[%clk 0:03:00]} 4. d4 {[%clk 0:02:24]}  exd4 {[%clk 0:02:58]} 5. Nxd4 {[%clk 0:02:23]}  Nf6 {[%clk 0:02:55]} 6. Nxc6 {[%clk 0:02:05]}  bxc6 {[%clk 0:02:54]} 7. e5 {[%clk 0:02:02]}  Qe7 {[%clk 0:02:54]} 8. Bf4 {[%clk 0:01:58]}  Qb4 {[%clk 0:02:51]} 9. Qd2 {[%clk 0:01:44]}  Nh5 {[%clk 0:02:39]} 10. Bg5 {[%clk 0:01:33]}  h6 {[%clk 0:02:35]} 11. Be3 {[%clk 0:01:34]}  f4 {[%clk 0:02:33]} 12. Be2 {[%clk 0:01:34]}  fxe3 {[%clk 0:02:29]} 13. Bxh5+ {[%clk 0:01:33]}  Kd8 {[%clk 0:02:29]} 14. Qxe3 {[%clk 0:01:32]}  Bc5 {[%clk 0:02:26]} 15. Qg3 {[%clk 0:01:24]}  g5 {[%clk 0:02:14]} 16. O-O {[%clk 0:01:24]}  Rf8 {[%clk 0:02:12]} 17. Rad1 {[%clk 0:01:21]}  Ba6 {[%clk 0:01:44]} 18. e6 {[%clk 0:01:13]}  d5 {[%clk 0:01:16]} 19. Be2 {[%clk 0:00:53]}  Bxe2 {[%clk 0:00:57]} 20. Nxe2 {[%clk 0:00:54]}  Qxb2 {[%clk 0:00:54]} 21. Qh3 {[%clk 0:00:49]}  Qf6 {[%clk 0:00:53]} 22. c4 {[%clk 0:00:49]}  Rb8 {[%clk 0:00:41]} 23. cxd5 {[%clk 0:00:47]}  Rb2 {[%clk 0:00:42]} 24. dxc6+ {[%clk 0:00:47]}  Ke8 {[%clk 0:00:38]} 25. Qh5+ {[%clk 0:00:45]}  Ke7 {[%clk 0:00:35]} 26. Rd7+ {[%clk 0:00:45]}  Kxe6 {[%clk 0:00:35]} 27. Qg4+ {[%clk 0:00:40]}  Qf5 {[%clk 0:00:35]} 28. Nd4+ {[%clk 0:00:39]}  Bxd4 {[%clk 0:00:34]} 29. Qxd4 {[%clk 0:00:40]}  Qc2 {[%clk 0:00:14]} 30. Re1+ {[%clk 0:00:37]}  Kf5 {[%clk 0:00:14]} 31. g4+ {[%clk 0:00:37]}  Kg6 {[%clk 0:00:12]} 32. Rg7# {[%clk 0:00:37]} 1-0


[Site "https://www.chess.com"]

[Event "Titled Tuesday Blitz March 15 Early 2022"]
[White "Avazkhonov, Alikhon"]
[Black "Slugin, Sergey"]
[WhiteFideId "14208504"]
[BlackFideId "4122569"]
[WhiteElo "1739"]
[BlackElo "2358"]
[Result "0-1"]
[Round "08"]
[TimeControl "180+1"]
[Date "2022.03.15"]
[WhiteClock "0:00:02"]
[BlackClock "0:02:19"]

1. c4 {[%clk 0:03:00]}  Nf6 {[%clk 0:02:59]} 2. Nc3 {[%clk 0:03:00]}  c5 {[%clk 0:03:00]} 3. g3 {[%clk 0:03:00]}  g6 {[%clk 0:02:58]} 4. Bg2 {[%clk 0:03:00]}  Bg7 {[%clk 0:02:59]} 5. e4 {[%clk 0:03:00]}  O-O {[%clk 0:02:59]} 6. Nge2 {[%clk 0:03:00]}  Nc6 {[%clk 0:02:59]} 7. O-O {[%clk 0:03:01]}  d6 {[%clk 0:03:00]} 8. d3 {[%clk 0:03:01]}  Rb8 {[%clk 0:03:00]} 9. f4 {[%clk 0:03:01]}  a6 {[%clk 0:03:00]} 10. h3 {[%clk 0:03:00]}  Ne8 {[%clk 0:02:57]} 11. Be3 {[%clk 0:02:59]}  b5 {[%clk 0:02:56]} 12. Qd2 {[%clk 0:02:43]}  Nd4 {[%clk 0:02:51]} 13. Rac1 {[%clk 0:02:28]}  bxc4 {[%clk 0:02:51]} 14. dxc4 {[%clk 0:02:27]}  Nxe2+ {[%clk 0:02:52]} 15. Qxe2 {[%clk 0:02:27]}  Nc7 {[%clk 0:02:52]} 16. b3 {[%clk 0:02:22]}  Ne6 {[%clk 0:02:52]} 17. Rfd1 {[%clk 0:02:08]}  Nd4 {[%clk 0:02:53]} 18. Qf2 {[%clk 0:02:05]}  h5 {[%clk 0:02:53]} 19. Rd2 {[%clk 0:01:41]}  e6 {[%clk 0:02:53]} 20. Rcd1 {[%clk 0:01:39]}  f5 {[%clk 0:02:50]} 21. e5 {[%clk 0:00:58]}  dxe5 {[%clk 0:02:50]} 22. fxe5 {[%clk 0:00:57]}  Bxe5 {[%clk 0:02:51]} 23. Na4 {[%clk 0:00:56]}  Qe7 {[%clk 0:02:51]} 24. Nxc5 {[%clk 0:00:43]}  Qxc5 {[%clk 0:02:51]} 25. Rxd4 {[%clk 0:00:27]}  Qc7 {[%clk 0:02:48]} 26. Bf4 {[%clk 0:00:17]}  Bxd4 {[%clk 0:02:43]} 27. Qxd4 {[%clk 0:00:15]}  Qb6 {[%clk 0:02:43]} 28. Bxb8 {[%clk 0:00:12]}  Qxb8 {[%clk 0:02:44]} 29. Qd6 {[%clk 0:00:10]}  Qa7+ {[%clk 0:02:44]} 30. Kh2 {[%clk 0:00:09]}  h4 {[%clk 0:02:41]} 31. gxh4 {[%clk 0:00:08]}  f4 {[%clk 0:02:39]} 32. c5 {[%clk 0:00:07]}  f3 {[%clk 0:02:39]} 33. Bf1 {[%clk 0:00:07]}  Qf7 {[%clk 0:02:37]} 34. Bd3 {[%clk 0:00:06]}  f2 {[%clk 0:02:36]} 35. Qg3 {[%clk 0:00:06]}  Kh8 {[%clk 0:02:28]} 36. Bxg6 {[%clk 0:00:05]}  Qf6 {[%clk 0:02:29]} 37. Bd3 {[%clk 0:00:04]}  Rg8 {[%clk 0:02:28]} 38. Qe3 {[%clk 0:00:04]}  Bb7 {[%clk 0:02:26]} 39. Be4 {[%clk 0:00:02]}  Qe5+ {[%clk 0:02:19]} 0-1


[Site "https://www.chess.com"]

[Event "Titled Tuesday Blitz March 15 Early 2022"]
[White "Bluebaum, Matthias"]
[Black "Rustemov, Alexander"]
[WhiteFideId "24651516"]
[BlackFideId "4119002"]
[WhiteElo "2550"]
[BlackElo "2770"]
[Result "1-0"]
[Round "08"]
[TimeControl "180+1"]
[Date "2022.03.15"]
[WhiteClock "0:00:33"]
[BlackClock "0:00:19"]

1. b3 {[%clk 0:03:00]}  d5 {[%clk 0:02:59]} 2. Bb2 {[%clk 0:03:01]}  Bf5 {[%clk 0:02:59]} 3. Nf3 {[%clk 0:03:01]}  Nf6 {[%clk 0:02:59]} 4. g3 {[%clk 0:03:01]}  e6 {[%clk 0:02:59]} 5. Bg2 {[%clk 0:03:02]}  h6 {[%clk 0:03:00]} 6. O-O {[%clk 0:03:02]}  Be7 {[%clk 0:03:00]} 7. d3 {[%clk 0:03:03]}  O-O {[%clk 0:03:00]} 8. Nbd2 {[%clk 0:03:04]}  a5 {[%clk 0:03:00]} 9. a3 {[%clk 0:03:04]}  c5 {[%clk 0:02:57]} 10. Ne5 {[%clk 0:03:04]}  Nc6 {[%clk 0:02:56]} 11. e4 {[%clk 0:03:04]}  Bh7 {[%clk 0:02:48]} 12. Qe2 {[%clk 0:02:51]}  Qc7 {[%clk 0:02:45]} 13. exd5 {[%clk 0:02:49]}  exd5 {[%clk 0:02:39]} 14. Ng4 {[%clk 0:02:29]}  Nd4 {[%clk 0:02:31]} 15. Qd1 {[%clk 0:01:55]}  Rfe8 {[%clk 0:02:11]} 16. Bxd4 {[%clk 0:01:46]}  cxd4 {[%clk 0:02:09]} 17. Nxf6+ {[%clk 0:01:46]}  Bxf6 {[%clk 0:02:09]} 18. Bxd5 {[%clk 0:01:47]}  Rac8 {[%clk 0:01:54]} 19. Rc1 {[%clk 0:01:47]}  b5 {[%clk 0:01:52]} 20. a4 {[%clk 0:01:44]}  Qc5 {[%clk 0:01:49]} 21. Be4 {[%clk 0:01:43]}  bxa4 {[%clk 0:01:21]} 22. bxa4 {[%clk 0:01:42]}  Bg5 {[%clk 0:01:15]} 23. f4 {[%clk 0:01:39]}  f5 {[%clk 0:01:09]} 24. Bf3 {[%clk 0:01:28]}  Be7 {[%clk 0:01:06]} 25. Nc4 {[%clk 0:01:28]}  Bf8 {[%clk 0:00:56]} 26. Re1 {[%clk 0:01:26]}  g5 {[%clk 0:00:50]} 27. Qd2 {[%clk 0:01:24]}  g4 {[%clk 0:00:47]} 28. Bg2 {[%clk 0:01:24]}  Kg7 {[%clk 0:00:46]} 29. Rb1 {[%clk 0:01:18]}  Rxe1+ {[%clk 0:00:42]} 30. Rxe1 {[%clk 0:01:19]}  Qb4 {[%clk 0:00:37]} 31. Qxb4 {[%clk 0:01:15]}  Bxb4 {[%clk 0:00:37]} 32. Re5 {[%clk 0:01:15]}  Bg8 {[%clk 0:00:37]} 33. Bd5 {[%clk 0:01:15]}  Bxd5 {[%clk 0:00:26]} 34. Rxd5 {[%clk 0:01:16]}  Kf6 {[%clk 0:00:27]} 35. Kf2 {[%clk 0:01:15]}  Bc3 {[%clk 0:00:25]} 36. Rxf5+ {[%clk 0:01:13]}  Kxf5 {[%clk 0:00:16]} 37. Nd6+ {[%clk 0:01:13]}  Ke6 {[%clk 0:00:17]} 38. Nxc8 {[%clk 0:01:14]}  Kd7 {[%clk 0:00:17]} 39. Nb6+ {[%clk 0:01:14]}  Kc6 {[%clk 0:00:17]} 40. Nc4 {[%clk 0:01:14]}  Kc5 {[%clk 0:00:18]} 41. f5 {[%clk 0:01:14]}  Kb4 {[%clk 0:00:18]} 42. Nb6 {[%clk 0:00:36]}  Kc5 {[%clk 0:00:18]} 43. Nd7+ {[%clk 0:00:37]}  Kb4 {[%clk 0:00:18]} 44. f6 {[%clk 0:00:33]}  Kxa4 {[%clk 0:00:19]} 45. Nc5+ {[%clk 0:00:33]} 1-0


[Site "https://www.chess.com"]

[Event "Titled Tuesday Blitz March 15 Early 2022"]
[White "Buscar, Michael"]
[Black "De Souza, Cristiano Gomes"]
[WhiteFideId "2603616"]
[BlackFideId "2151758"]
[WhiteElo "2010"]
[BlackElo "2068"]
[Result "0-1"]
[Round "08"]
[TimeControl "180+1"]
[Date "2022.03.15"]
[WhiteClock "0:01:22"]
[BlackClock "0:02:05"]

1. d4 {[%clk 0:02:56]}  Nf6 {[%clk 0:02:59]} 2. Nf3 {[%clk 0:02:56]}  g6 {[%clk 0:02:59]} 3. g3 {[%clk 0:02:56]}  Bg7 {[%clk 0:02:59]} 4. Bg2 {[%clk 0:02:57]}  O-O {[%clk 0:03:00]} 5. O-O {[%clk 0:02:57]}  d6 {[%clk 0:03:00]} 6. c4 {[%clk 0:02:58]}  Nc6 {[%clk 0:03:01]} 7. d5 {[%clk 0:02:56]}  Na5 {[%clk 0:03:00]} 8. Nbd2 {[%clk 0:02:53]}  c5 {[%clk 0:02:58]} 9. e4 {[%clk 0:02:47]}  a6 {[%clk 0:02:58]} 10. a4 {[%clk 0:02:45]}  Ng4 {[%clk 0:02:51]} 11. Ra3 {[%clk 0:02:42]}  Ne5 {[%clk 0:02:50]} 12. Qe2 {[%clk 0:02:37]}  Bd7 {[%clk 0:02:44]} 13. h3 {[%clk 0:02:33]}  Rb8 {[%clk 0:02:39]} 14. Nh2 {[%clk 0:02:24]}  b5 {[%clk 0:02:36]} 15. axb5 {[%clk 0:02:23]}  axb5 {[%clk 0:02:36]} 16. b3 {[%clk 0:02:19]}  bxc4 {[%clk 0:02:33]} 17. bxc4 {[%clk 0:02:19]}  Rb4 {[%clk 0:02:30]} 18. Rc3 {[%clk 0:02:06]}  Naxc4 {[%clk 0:02:18]} 19. Nxc4 {[%clk 0:02:01]}  Nxc4 {[%clk 0:02:16]} 20. Rxc4 {[%clk 0:02:01]}  Bb5 {[%clk 0:02:16]} 21. Ba3 {[%clk 0:01:43]}  Rxc4 {[%clk 0:02:10]} 22. Qa2 {[%clk 0:01:26]}  Ra4 {[%clk 0:02:07]} 23. Rb1 {[%clk 0:01:24]}  Qa5 {[%clk 0:02:07]} 24. Qb3 {[%clk 0:01:22]}  Bc4 {[%clk 0:02:05]} 0-1


[Site "https://www.chess.com"]

[Event "Titled Tuesday Blitz March 15 Early 2022"]
[White "Deac, Bogdan-Daniel"]
[Black "Babazada, Khazar"]
[WhiteFideId "1226380"]
[BlackFideId "13413554"]
[WhiteElo "2646"]
[BlackElo "2418"]
[Result "1/2-1/2"]
[Round "08"]
[TimeControl "180+1"]
[Date "2022.03.15"]
[WhiteClock "0:00:21"]
[BlackClock "0:00:31"]

1. d4 {[%clk 0:02:55]}  Nf6 {[%clk 0:03:00]} 2. Nf3 {[%clk 0:02:55]}  e6 {[%clk 0:03:00]} 3. c4 {[%clk 0:02:54]}  d5 {[%clk 0:03:00]} 4. g3 {[%clk 0:02:53]}  a6 {[%clk 0:02:58]} 5. Bg2 {[%clk 0:02:53]}  dxc4 {[%clk 0:02:58]} 6. O-O {[%clk 0:02:53]}  Ra7 {[%clk 0:02:54]} 7. a4 {[%clk 0:02:50]}  c6 {[%clk 0:02:48]} 8. a5 {[%clk 0:02:49]}  Bb4 {[%clk 0:02:42]} 9. Qa4 {[%clk 0:02:47]}  Be7 {[%clk 0:02:37]} 10. Nbd2 {[%clk 0:02:43]}  O-O {[%clk 0:02:34]} 11. Nxc4 {[%clk 0:02:42]}  c5 {[%clk 0:02:30]} 12. Rd1 {[%clk 0:02:34]}  Bd7 {[%clk 0:02:29]} 13. Qb3 {[%clk 0:02:34]}  Bb5 {[%clk 0:02:26]} 14. Be3 {[%clk 0:02:06]}  Nd5 {[%clk 0:02:20]} 15. dxc5 {[%clk 0:02:02]}  Qc7 {[%clk 0:02:20]} 16. Nd6 {[%clk 0:01:59]}  Nc6 {[%clk 0:02:15]} 17. Nxb5 {[%clk 0:01:55]}  axb5 {[%clk 0:02:14]} 18. Qxb5 {[%clk 0:01:55]}  Rfa8 {[%clk 0:02:10]} 19. Bd2 {[%clk 0:01:48]}  Nxa5 {[%clk 0:02:05]} 20. e4 {[%clk 0:01:46]}  Nf6 {[%clk 0:02:04]} 21. b4 {[%clk 0:01:29]}  Nc6 {[%clk 0:01:51]} 22. Rxa7 {[%clk 0:01:28]}  Rxa7 {[%clk 0:01:51]} 23. Bf4 {[%clk 0:01:07]}  e5 {[%clk 0:01:50]} 24. Nxe5 {[%clk 0:00:59]}  Nxe5 {[%clk 0:01:43]} 25. Qb6 {[%clk 0:00:55]}  Qxb6 {[%clk 0:01:38]} 26. cxb6 {[%clk 0:00:55]}  Ra6 {[%clk 0:01:39]} 27. Bxe5 {[%clk 0:00:55]}  Rxb6 {[%clk 0:01:38]} 28. Bc3 {[%clk 0:00:55]}  Ne8 {[%clk 0:01:26]} 29. e5 {[%clk 0:00:42]}  Bxb4 {[%clk 0:01:25]} 30. Rb1 {[%clk 0:00:40]}  Bc5 {[%clk 0:01:23]} 31. Rxb6 {[%clk 0:00:40]}  Bxb6 {[%clk 0:01:24]} 32. Bxb7 {[%clk 0:00:40]}  Nc7 {[%clk 0:01:22]} 33. Kg2 {[%clk 0:00:40]}  Nb5 {[%clk 0:01:12]} 34. Bd2 {[%clk 0:00:39]}  h6 {[%clk 0:00:56]} 35. f4 {[%clk 0:00:38]}  Nd4 {[%clk 0:00:56]} 36. Bd5 {[%clk 0:00:36]}  g6 {[%clk 0:00:52]} 37. g4 {[%clk 0:00:27]}  Kg7 {[%clk 0:00:52]} 38. Bb4 {[%clk 0:00:25]}  Nc2 {[%clk 0:00:47]} 39. Bd2 {[%clk 0:00:22]}  Ne3+ {[%clk 0:00:28]} 40. Bxe3 {[%clk 0:00:22]}  Bxe3 {[%clk 0:00:29]} 41. Kf3 {[%clk 0:00:23]}  Bd2 {[%clk 0:00:26]} 42. f5 {[%clk 0:00:21]}  f6 {[%clk 0:00:25]} 43. e6 {[%clk 0:00:18]}  Bb4 {[%clk 0:00:25]} 44. Ke4 {[%clk 0:00:16]}  g5 {[%clk 0:00:26]} 45. Kd4 {[%clk 0:00:15]}  Kf8 {[%clk 0:00:26]} 46. Kc4 {[%clk 0:00:15]}  Bd6 {[%clk 0:00:24]} 47. h3 {[%clk 0:00:15]}  Ke7 {[%clk 0:00:24]} 48. Kb5 {[%clk 0:00:16]}  Ba3 {[%clk 0:00:24]} 49. Kc6 {[%clk 0:00:16]}  Bd6 {[%clk 0:00:25]} 50. Bc4 {[%clk 0:00:17]}  Bf4 {[%clk 0:00:26]} 51. Bd3 {[%clk 0:00:17]}  Bd6 {[%clk 0:00:26]} 52. Be4 {[%clk 0:00:17]}  Bf4 {[%clk 0:00:27]} 53. Bf3 {[%clk 0:00:18]}  Bd6 {[%clk 0:00:28]} 54. Bd5 {[%clk 0:00:19]}  Bf4 {[%clk 0:00:28]} 55. Bb3 {[%clk 0:00:18]}  Bd6 {[%clk 0:00:28]} 56. Kd5 {[%clk 0:00:19]}  Be5 {[%clk 0:00:29]} 57. Ke4 {[%clk 0:00:19]}  Bd6 {[%clk 0:00:29]} 58. Kf3 {[%clk 0:00:20]}  Be5 {[%clk 0:00:30]} 59. Kg2 {[%clk 0:00:20]}  Bd6 {[%clk 0:00:30]} 60. h4 {[%clk 0:00:20]}  gxh4 {[%clk 0:00:31]} 61. Kh3 {[%clk 0:00:20]}  Bg3 {[%clk 0:00:32]} 62. Bc2 {[%clk 0:00:21]}  Bf2 {[%clk 0:00:31]} 63. Bd3 {[%clk 0:00:21]} 1/2-1/2


[Site "https://www.chess.com"]

[Event "Titled Tuesday Blitz March 15 Early 2022"]
[White "Demchenko, Anton"]
[Black "Nagy, Gabor"]
[WhiteFideId "4160258"]
[BlackFideId "737119"]
[WhiteElo "2539"]
[BlackElo "2534"]
[Result "1/2-1/2"]
[Round "08"]
[TimeControl "180+1"]
[Date "2022.03.15"]
[WhiteClock "0:00:34"]
[BlackClock "0:00:34"]

1. e4 {[%clk 0:02:59]}  e5 {[%clk 0:02:59]} 2. Nf3 {[%clk 0:03:00]}  Nc6 {[%clk 0:02:59]} 3. Bc4 {[%clk 0:03:00]}  Nf6 {[%clk 0:02:59]} 4. d3 {[%clk 0:03:00]}  Be7 {[%clk 0:02:56]} 5. O-O {[%clk 0:02:59]}  d6 {[%clk 0:02:55]} 6. a4 {[%clk 0:02:55]}  Bg4 {[%clk 0:02:53]} 7. c3 {[%clk 0:02:52]}  O-O {[%clk 0:02:52]} 8. h3 {[%clk 0:02:51]}  Bh5 {[%clk 0:02:52]} 9. Nbd2 {[%clk 0:02:51]}  d5 {[%clk 0:02:49]} 10. exd5 {[%clk 0:02:49]}  Nxd5 {[%clk 0:02:50]} 11. Ne4 {[%clk 0:02:39]}  Kh8 {[%clk 0:02:43]} 12. Ng3 {[%clk 0:02:32]}  Bg6 {[%clk 0:02:39]} 13. a5 {[%clk 0:02:29]}  a6 {[%clk 0:02:38]} 14. Re1 {[%clk 0:02:25]}  f6 {[%clk 0:02:37]} 15. Qb3 {[%clk 0:02:24]}  Nf4 {[%clk 0:02:25]} 16. Bxf4 {[%clk 0:02:13]}  exf4 {[%clk 0:02:24]} 17. Ne2 {[%clk 0:02:06]}  Bd6 {[%clk 0:02:19]} 18. Ned4 {[%clk 0:02:04]}  Nxd4 {[%clk 0:02:13]} 19. Nxd4 {[%clk 0:02:05]}  f5 {[%clk 0:01:48]} 20. Qxb7 {[%clk 0:01:55]}  Rb8 {[%clk 0:01:45]} 21. Qxa6 {[%clk 0:01:49]}  Rxb2 {[%clk 0:01:43]} 22. Rab1 {[%clk 0:01:48]}  Rxb1 {[%clk 0:01:42]} 23. Rxb1 {[%clk 0:01:48]}  Qh4 {[%clk 0:01:39]} 24. Nf3 {[%clk 0:01:42]}  Qf6 {[%clk 0:01:38]} 25. d4 {[%clk 0:01:07]}  Bh5 {[%clk 0:01:36]} 26. Qb7 {[%clk 0:01:02]}  g5 {[%clk 0:01:35]} 27. a6 {[%clk 0:00:59]}  g4 {[%clk 0:01:35]} 28. a7 {[%clk 0:00:44]}  gxf3 {[%clk 0:01:30]} 29. a8=Q {[%clk 0:00:45]}  Rxa8 {[%clk 0:01:28]} 30. Qxa8+ {[%clk 0:00:44]}  Kg7 {[%clk 0:01:29]} 31. gxf3 {[%clk 0:00:35]}  Kh6 {[%clk 0:01:20]} 32. Bf1 {[%clk 0:00:29]}  c5 {[%clk 0:01:15]} 33. Rd1 {[%clk 0:00:23]}  cxd4 {[%clk 0:01:15]} 34. Rxd4 {[%clk 0:00:22]}  Be5 {[%clk 0:01:14]} 35. Rc4 {[%clk 0:00:21]}  Bg6 {[%clk 0:01:12]} 36. Rc6 {[%clk 0:00:18]}  Qe7 {[%clk 0:01:04]} 37. Qa6 {[%clk 0:00:09]}  Bg7 {[%clk 0:00:53]} 38. Qe2 {[%clk 0:00:08]}  Qd7 {[%clk 0:00:50]} 39. Rc4 {[%clk 0:00:08]}  Bf6 {[%clk 0:00:48]} 40. Qd3 {[%clk 0:00:08]}  Qg7 {[%clk 0:00:43]} 41. Bg2 {[%clk 0:00:09]}  Bg5 {[%clk 0:00:39]} 42. Rc6 {[%clk 0:00:08]}  Qe5 {[%clk 0:00:38]} 43. Qd4 {[%clk 0:00:08]}  Qe1+ {[%clk 0:00:37]} 44. Kh2 {[%clk 0:00:08]}  Kh5 {[%clk 0:00:31]} 45. Rd6 {[%clk 0:00:06]}  Bh4 {[%clk 0:00:31]} 46. Qxf4 {[%clk 0:00:03]}  Bxf2 {[%clk 0:00:31]} 47. h4 {[%clk 0:00:03]}  Bxh4 {[%clk 0:00:26]} 48. Rd5 {[%clk 0:00:03]}  Bg5 {[%clk 0:00:24]} 49. Rxf5 {[%clk 0:00:04]}  Bxf5 {[%clk 0:00:23]} 50. Qxf5 {[%clk 0:00:05]}  Qxc3 {[%clk 0:00:16]} 51. Qxh7+ {[%clk 0:00:04]}  Bh6 {[%clk 0:00:16]} 52. Qf5+ {[%clk 0:00:05]}  Bg5 {[%clk 0:00:16]} 53. Qf7+ {[%clk 0:00:05]}  Kh6 {[%clk 0:00:17]} 54. Qe6+ {[%clk 0:00:05]}  Qf6 {[%clk 0:00:17]} 55. Qxf6+ {[%clk 0:00:05]}  Bxf6 {[%clk 0:00:17]} 56. Kg3 {[%clk 0:00:05]}  Kg5 {[%clk 0:00:18]} 57. f4+ {[%clk 0:00:06]}  Kf5 {[%clk 0:00:17]} 58. Kf3 {[%clk 0:00:05]}  Kg6 {[%clk 0:00:17]} 59. Bh3 {[%clk 0:00:05]}  Kg7 {[%clk 0:00:18]} 60. Kg4 {[%clk 0:00:06]}  Bd8 {[%clk 0:00:19]} 61. f5 {[%clk 0:00:05]}  Kf6 {[%clk 0:00:19]} 62. Kf3 {[%clk 0:00:06]}  Be7 {[%clk 0:00:20]} 63. Ke4 {[%clk 0:00:07]}  Bd6 {[%clk 0:00:21]} 64. Kd5 {[%clk 0:00:08]}  Bf8 {[%clk 0:00:22]} 65. Kc6 {[%clk 0:00:09]}  Bh6 {[%clk 0:00:22]} 66. Kd7 {[%clk 0:00:10]}  Bg5 {[%clk 0:00:23]} 67. Ke8 {[%clk 0:00:10]}  Bh4 {[%clk 0:00:23]} 68. Kf8 {[%clk 0:00:11]}  Bg5 {[%clk 0:00:24]} 69. Kg8 {[%clk 0:00:12]}  Bh4 {[%clk 0:00:25]} 70. Kh7 {[%clk 0:00:13]}  Be1 {[%clk 0:00:25]} 71. Kh6 {[%clk 0:00:14]}  Bc3 {[%clk 0:00:26]} 72. Kh5 {[%clk 0:00:14]}  Be5 {[%clk 0:00:27]} 73. Kg4 {[%clk 0:00:15]}  Ba1 {[%clk 0:00:27]} 74. Kf3 {[%clk 0:00:16]}  Bb2 {[%clk 0:00:28]} 75. Bg4 {[%clk 0:00:17]}  Ba1 {[%clk 0:00:29]} 76. Bh5 {[%clk 0:00:17]}  Bb2 {[%clk 0:00:30]} 77. Bg6 {[%clk 0:00:18]}  Ba1 {[%clk 0:00:29]} 78. Ke4 {[%clk 0:00:19]}  Bb2 {[%clk 0:00:30]} 79. Kd3 {[%clk 0:00:20]}  Ba1 {[%clk 0:00:31]} 80. Kc4 {[%clk 0:00:21]}  Be5 {[%clk 0:00:31]} 81. Kd5 {[%clk 0:00:22]}  Bh2 {[%clk 0:00:32]} 82. Kc4 {[%clk 0:00:23]}  Bg3 {[%clk 0:00:32]} 83. Kd3 {[%clk 0:00:24]}  Bb8 {[%clk 0:00:33]} 84. Ke3 {[%clk 0:00:25]}  Bc7 {[%clk 0:00:33]} 85. Ke4 {[%clk 0:00:25]}  Bd8 {[%clk 0:00:34]} 86. Kd5 {[%clk 0:00:26]}  Be7 {[%clk 0:00:35]} 87. Kc6 {[%clk 0:00:26]}  Bf8 {[%clk 0:00:35]} 88. Kd7 {[%clk 0:00:27]}  Bg7 {[%clk 0:00:35]} 89. Ke8 {[%clk 0:00:27]}  Bh6 {[%clk 0:00:36]} 90. Kd7 {[%clk 0:00:27]}  Bg7 {[%clk 0:00:36]} 91. Kc6 {[%clk 0:00:28]}  Bh6 {[%clk 0:00:36]} 92. Kd5 {[%clk 0:00:29]}  Bg7 {[%clk 0:00:36]} 93. Ke4 {[%clk 0:00:29]}  Bf8 {[%clk 0:00:37]} 94. Bf7 {[%clk 0:00:29]}  Kxf7 {[%clk 0:00:36]} 95. f6 {[%clk 0:00:30]}  Be7 {[%clk 0:00:36]} 96. Kd4 {[%clk 0:00:31]}  Ke6 {[%clk 0:00:35]} 97. Kc4 {[%clk 0:00:32]}  Kf7 {[%clk 0:00:34]} 98. Kb3 {[%clk 0:00:33]}  Ke6 {[%clk 0:00:34]} 99. Kc2 {[%clk 0:00:34]}  Bxf6 {[%clk 0:00:34]} 1/2-1/2


[Site "https://www.chess.com"]

[Event "Titled Tuesday Blitz March 15 Early 2022"]
[White "Demin, Vladimir"]
[Black "Prohorov, Olexandr"]
[WhiteFideId "4167457"]
[BlackFideId "14105578"]
[WhiteElo "2496"]
[BlackElo "1993"]
[Result "1-0"]
[Round "08"]
[TimeControl "180+1"]
[Date "2022.03.15"]
[WhiteClock "0:00:35"]
[BlackClock "0:00:10"]

1. e4 {[%clk 0:03:00]}  c5 {[%clk 0:02:59]} 2. Nf3 {[%clk 0:03:00]}  e6 {[%clk 0:03:00]} 3. c3 {[%clk 0:02:59]}  Nf6 {[%clk 0:02:59]} 4. e5 {[%clk 0:02:57]}  Nd5 {[%clk 0:02:59]} 5. d4 {[%clk 0:02:56]}  cxd4 {[%clk 0:03:00]} 6. Qxd4 {[%clk 0:02:57]}  Nc6 {[%clk 0:02:59]} 7. Qe4 {[%clk 0:02:56]}  f5 {[%clk 0:03:00]} 8. Qe2 {[%clk 0:02:56]}  Qc7 {[%clk 0:02:57]} 9. g3 {[%clk 0:02:56]}  b5 {[%clk 0:02:53]} 10. Bg2 {[%clk 0:02:56]}  Bb7 {[%clk 0:02:53]} 11. O-O {[%clk 0:02:56]}  a6 {[%clk 0:02:49]} 12. Rd1 {[%clk 0:02:56]}  Be7 {[%clk 0:02:48]} 13. a4 {[%clk 0:02:55]}  O-O {[%clk 0:02:43]} 14. Nbd2 {[%clk 0:02:45]}  bxa4 {[%clk 0:02:19]} 15. Rxa4 {[%clk 0:02:44]}  a5 {[%clk 0:02:20]} 16. Nb3 {[%clk 0:02:39]}  Ba6 {[%clk 0:02:17]} 17. Qe1 {[%clk 0:02:39]}  Bb5 {[%clk 0:02:16]} 18. Ra1 {[%clk 0:02:39]}  a4 {[%clk 0:02:06]} 19. Nbd4 {[%clk 0:02:39]}  Bc4 {[%clk 0:02:06]} 20. Nxc6 {[%clk 0:02:36]}  dxc6 {[%clk 0:02:01]} 21. Nd4 {[%clk 0:02:35]}  Qc8 {[%clk 0:01:55]} 22. Bf4 {[%clk 0:02:17]}  Ra7 {[%clk 0:01:40]} 23. Qd2 {[%clk 0:02:12]}  Bc5 {[%clk 0:01:33]} 24. h4 {[%clk 0:02:06]}  Rff7 {[%clk 0:01:18]} 25. h5 {[%clk 0:02:06]}  Rfb7 {[%clk 0:01:14]} 26. h6 {[%clk 0:01:50]}  g6 {[%clk 0:01:13]} 27. Rdb1 {[%clk 0:01:37]}  Qd7 {[%clk 0:01:06]} 28. Bg5 {[%clk 0:01:35]}  Kf7 {[%clk 0:01:05]} 29. Nf3 {[%clk 0:01:27]}  Rb3 {[%clk 0:00:39]} 30. Qe1 {[%clk 0:01:22]}  Kg8 {[%clk 0:00:38]} 31. Nd2 {[%clk 0:01:21]}  Rab7 {[%clk 0:00:18]} 32. Nxc4 {[%clk 0:01:21]}  a3 {[%clk 0:00:10]} 33. Na5 {[%clk 0:00:35]} 1-0


[Site "https://www.chess.com"]